[Event "Titled Tuesday Blitz August 16 Early 2022"]
[White "Leve, Nitai"]
[Black "Agasarov, Benik"]
[WhiteFideId "2006898"]
[BlackFideId "13314823"]
[WhiteElo "2144"]
[BlackElo "2152"]
[Result "0-1"]
[Round "02"]
[TimeControl "180+2"]
[Date "2022.08.18"]
[WhiteClock "0:00:00"]
[BlackClock "0:00:00"]

1. e4 {[%clk 0:00:00]}  e5 {[%clk 0:00:00]} 2. Nf3 {[%clk 0:00:00]}  Nc6 {[%clk 0:00:00]} 3. Bb5 {[%clk 0:00:00]}  Nf6 {[%clk 0:00:00]} 4. d4 {[%clk 0:00:00]}  exd4 {[%clk 0:00:00]} 5. O-O {[%clk 0:00:00]}  Bc5 {[%clk 0:00:00]} 6. Re1 {[%clk 0:00:00]}  O-O {[%clk 0:00:00]} 7. e5 {[%clk 0:00:00]}  Nd5 {[%clk 0:00:00]} 8. c3 {[%clk 0:00:00]}  d6 {[%clk 0:00:00]} 9. cxd4 {[%clk 0:00:00]}  Bb4 {[%clk 0:00:00]} 10. Bd2 {[%clk 0:00:00]}  Bg4 {[%clk 0:00:00]} 11. Bxc6 {[%clk 0:00:00]}  bxc6 {[%clk 0:00:00]} 12. Bxb4 {[%clk 0:00:00]}  Nxb4 {[%clk 0:00:00]} 13. Nbd2 {[%clk 0:00:00]}  Nd3 {[%clk 0:00:00]} 14. Re3 {[%clk 0:00:00]}  Nf4 {[%clk 0:00:00]} 15. Re4 {[%clk 0:00:00]}  Bxf3 {[%clk 0:00:00]} 16. Nxf3 {[%clk 0:00:00]}  Ng6 {[%clk 0:00:00]} 17. Rc1 {[%clk 0:00:00]}  Qd7 {[%clk 0:00:00]} 18. Qa4 {[%clk 0:00:00]}  Rfb8 {[%clk 0:00:00]} 19. b3 {[%clk 0:00:00]}  Rb6 {[%clk 0:00:00]} 20. g3 {[%clk 0:00:00]}  Qf5 {[%clk 0:00:00]} 21. Re3 {[%clk 0:00:00]}  Ne7 {[%clk 0:00:00]} 22. exd6 {[%clk 0:00:00]}  Nd5 {[%clk 0:00:00]} 23. Rce1 {[%clk 0:00:00]}  Nxe3 {[%clk 0:00:00]} 24. Rxe3 {[%clk 0:00:00]}  cxd6 {[%clk 0:00:00]} 25. Qc4 {[%clk 0:00:00]}  h6 {[%clk 0:00:00]} 26. h4 {[%clk 0:00:00]}  a5 {[%clk 0:00:00]} 27. Kg2 {[%clk 0:00:00]}  Qd5 {[%clk 0:00:00]} 28. Qc3 {[%clk 0:00:00]}  a4 {[%clk 0:00:00]} 29. bxa4 {[%clk 0:00:00]}  Qxa2 {[%clk 0:00:00]} 30. Kh2 {[%clk 0:00:00]}  Qxf2+ {[%clk 0:00:00]} 31. Kh3 {[%clk 0:00:00]}  Qf1+ {[%clk 0:00:00]} 32. Kh2 {[%clk 0:00:00]}  Rb1 {[%clk 0:00:00]} 0-1


[Site "https://www.chess.com"]

[Event "Titled Tuesday Blitz August 16 Early 2022"]
[White "Lobanov, Sergei"]
[Black "Fernandez, Fernando"]
[WhiteFideId "24183750"]
[BlackFideId "3802299"]
[WhiteElo "2524"]
[BlackElo "2292"]
[Result "1-0"]
[Round "02"]
[TimeControl "180+1"]
[Date "2022.08.16"]
[WhiteClock "0:00:12"]
[BlackClock "0:00:08"]

1. Nf3 {[%clk 0:03:00]}  d5 {[%clk 0:02:56]} 2. e3 {[%clk 0:03:00]}  Nf6 {[%clk 0:02:56]} 3. b3 {[%clk 0:03:00]}  Bf5 {[%clk 0:02:48]} 4. Bb2 {[%clk 0:03:00]}  e6 {[%clk 0:02:48]} 5. d4 {[%clk 0:02:41]}  Bd6 {[%clk 0:02:44]} 6. Nbd2 {[%clk 0:02:40]}  Nbd7 {[%clk 0:02:40]} 7. Bd3 {[%clk 0:02:40]}  Ne4 {[%clk 0:02:40]} 8. Qe2 {[%clk 0:02:21]}  Qf6 {[%clk 0:02:27]} 9. c4 {[%clk 0:02:11]}  c6 {[%clk 0:02:10]} 10. O-O-O {[%clk 0:01:53]}  O-O {[%clk 0:01:34]} 11. g4 {[%clk 0:01:46]}  Bxg4 {[%clk 0:01:27]} 12. Nxe4 {[%clk 0:01:45]}  dxe4 {[%clk 0:01:19]} 13. Bxe4 {[%clk 0:01:46]}  Qh6 {[%clk 0:01:04]} 14. h3 {[%clk 0:00:59]}  Bf5 {[%clk 0:00:55]} 15. Bc2 {[%clk 0:00:52]}  Nf6 {[%clk 0:00:52]} 16. Nd2 {[%clk 0:00:48]}  Bb4 {[%clk 0:00:47]} 17. Bxf5 {[%clk 0:00:32]}  exf5 {[%clk 0:00:48]} 18. Nf3 {[%clk 0:00:29]}  Ne4 {[%clk 0:00:46]} 19. Ne5 {[%clk 0:00:29]}  a5 {[%clk 0:00:36]} 20. Rhg1 {[%clk 0:00:21]}  a4 {[%clk 0:00:35]} 21. a3 {[%clk 0:00:21]}  Bc3 {[%clk 0:00:32]} 22. b4 {[%clk 0:00:20]}  Bxb2+ {[%clk 0:00:30]} 23. Kxb2 {[%clk 0:00:21]}  Rfe8 {[%clk 0:00:30]} 24. Qf3 {[%clk 0:00:19]}  f6 {[%clk 0:00:26]} 25. Nd3 {[%clk 0:00:17]}  Nd6 {[%clk 0:00:21]} 26. Rc1 {[%clk 0:00:13]}  b5 {[%clk 0:00:11]} 27. cxb5 {[%clk 0:00:12]}  cxb5 {[%clk 0:00:11]} 28. Rc7 {[%clk 0:00:12]}  g6 {[%clk 0:00:08]} 29. Qd5+ {[%clk 0:00:12]} 1-0


[Site "https://www.chess.com"]

[Event "Titled Tuesday Blitz August 16 Early 2022"]
[White "Maltsevskaya, Aleksandra"]
[Black "Fernandez Siles, Luis"]
[WhiteFideId "24174041"]
[BlackFideId "2209420"]
[WhiteElo "2243"]
[BlackElo "2211"]
[Result "0-1"]
[Round "02"]
[TimeControl "180+2"]
[Date "2022.08.18"]
[WhiteClock "0:00:00"]
[BlackClock "0:00:00"]

1. e4 {[%clk 0:00:00]}  c5 {[%clk 0:00:00]} 2. Nf3 {[%clk 0:00:00]}  Nc6 {[%clk 0:00:00]} 3. d4 {[%clk 0:00:00]}  cxd4 {[%clk 0:00:00]} 4. Nxd4 {[%clk 0:00:00]}  Nf6 {[%clk 0:00:00]} 5. Nc3 {[%clk 0:00:00]}  e5 {[%clk 0:00:00]} 6. Ndb5 {[%clk 0:00:00]}  d6 {[%clk 0:00:00]} 7. Bg5 {[%clk 0:00:00]}  a6 {[%clk 0:00:00]} 8. Na3 {[%clk 0:00:00]}  b5 {[%clk 0:00:00]} 9. Nd5 {[%clk 0:00:00]}  Be7 {[%clk 0:00:00]} 10. Bxf6 {[%clk 0:00:00]}  Bxf6 {[%clk 0:00:00]} 11. c3 {[%clk 0:00:00]}  O-O {[%clk 0:00:00]} 0-1


[Site "https://www.chess.com"]

[Event "Titled Tuesday Blitz August 16 Early 2022"]
[White "Malyi, Viacheslav"]
[Black "Yuan, Qingyu"]
[WhiteFideId "14123983"]
[BlackFideId "8609772"]
[WhiteElo "2190"]
[BlackElo "2359"]
[Result "1/2-1/2"]
[Round "02"]
[TimeControl "180+2"]
[Date "2022.08.18"]
[WhiteClock "0:00:00"]
[BlackClock "0:00:00"]

1. e4 {[%clk 0:00:00]}  c6 {[%clk 0:00:00]} 2. d4 {[%clk 0:00:00]}  d5 {[%clk 0:00:00]} 3. Nc3 {[%clk 0:00:00]}  dxe4 {[%clk 0:00:00]} 4. Nxe4 {[%clk 0:00:00]}  Nf6 {[%clk 0:00:00]} 5. Nxf6+ {[%clk 0:00:00]}  exf6 {[%clk 0:00:00]} 6. Bd3 {[%clk 0:00:00]}  Qxd4 {[%clk 0:00:00]} 7. Nf3 {[%clk 0:00:00]}  Qd6 {[%clk 0:00:00]} 8. O-O {[%clk 0:00:00]}  Be7 {[%clk 0:00:00]} 9. Nh4 {[%clk 0:00:00]}  g6 {[%clk 0:00:00]} 10. Bh6 {[%clk 0:00:00]}  Be6 {[%clk 0:00:00]} 11. Re1 {[%clk 0:00:00]}  Nd7 {[%clk 0:00:00]} 12. Qf3 {[%clk 0:00:00]}  Ne5 {[%clk 0:00:00]} 13. Qe3 {[%clk 0:00:00]}  Nxd3 {[%clk 0:00:00]} 14. cxd3 {[%clk 0:00:00]}  Qc5 {[%clk 0:00:00]} 15. Qxc5 {[%clk 0:00:00]}  Bxc5 {[%clk 0:00:00]} 16. Bg7 {[%clk 0:00:00]}  Rg8 {[%clk 0:00:00]} 17. Bxf6 {[%clk 0:00:00]}  g5 {[%clk 0:00:00]} 18. Nf3 {[%clk 0:00:00]}  h6 {[%clk 0:00:00]} 19. Nd4 {[%clk 0:00:00]}  Kd7 {[%clk 0:00:00]} 20. Rac1 {[%clk 0:00:00]}  Bd6 {[%clk 0:00:00]} 21. a3 {[%clk 0:00:00]}  Rae8 {[%clk 0:00:00]} 22. Nxe6 {[%clk 0:00:00]}  Rxe6 {[%clk 0:00:00]} 23. Rxe6 {[%clk 0:00:00]}  Kxe6 {[%clk 0:00:00]} 24. Bd4 {[%clk 0:00:00]}  Bb8 {[%clk 0:00:00]} 25. Re1+ {[%clk 0:00:00]}  Kd7 {[%clk 0:00:00]} 26. g4 {[%clk 0:00:00]}  b6 {[%clk 0:00:00]} 27. Bf6 {[%clk 0:00:00]}  Bd6 {[%clk 0:00:00]} 28. Kg2 {[%clk 0:00:00]}  Rg6 {[%clk 0:00:00]} 29. Bc3 {[%clk 0:00:00]}  h5 {[%clk 0:00:00]} 30. h3 {[%clk 0:00:00]}  hxg4 {[%clk 0:00:00]} 31. hxg4 {[%clk 0:00:00]}  Rh6 {[%clk 0:00:00]} 32. Rh1 {[%clk 0:00:00]}  Rxh1 {[%clk 0:00:00]} 33. Kxh1 {[%clk 0:00:00]}  Ke6 {[%clk 0:00:00]} 34. Kg2 {[%clk 0:00:00]}  Be5 {[%clk 0:00:00]} 35. Kf3 {[%clk 0:00:00]}  Kd5 {[%clk 0:00:00]} 36. Ke3 {[%clk 0:00:00]}  Bf4+ {[%clk 0:00:00]} 37. Ke2 {[%clk 0:00:00]}  Be5 {[%clk 0:00:00]} 38. Ke3 {[%clk 0:00:00]}  c5 {[%clk 0:00:00]} 39. f3 {[%clk 0:00:00]}  Bf4+ {[%clk 0:00:00]} 40. Ke2 {[%clk 0:00:00]}  Be5 {[%clk 0:00:00]} 41. Ke3 {[%clk 0:00:00]}  b5 {[%clk 0:00:00]} 42. Kd2 {[%clk 0:00:00]}  Bd4 {[%clk 0:00:00]} 43. Ke2 {[%clk 0:00:00]}  Ke5 {[%clk 0:00:00]} 44. Ke1 {[%clk 0:00:00]}  Bxc3+ {[%clk 0:00:00]} 45. bxc3 {[%clk 0:00:00]}  a5 {[%clk 0:00:00]} 46. Kd2 {[%clk 0:00:00]}  b4 {[%clk 0:00:00]} 47. axb4 {[%clk 0:00:00]}  axb4 {[%clk 0:00:00]} 48. d4+ {[%clk 0:00:00]}  Kd5 {[%clk 0:00:00]} 49. dxc5 {[%clk 0:00:00]}  b3 {[%clk 0:00:00]} 50. c4+ {[%clk 0:00:00]}  Kxc5 {[%clk 0:00:00]} 51. Kc3 {[%clk 0:00:00]}  b2 {[%clk 0:00:00]} 52. Kxb2 {[%clk 0:00:00]}  Kxc4 {[%clk 0:00:00]} 53. Kc2 {[%clk 0:00:00]}  Kd4 {[%clk 0:00:00]} 54. Kd2 {[%clk 0:00:00]}  f6 {[%clk 0:00:00]} 55. Ke2 {[%clk 0:00:00]}  Ke5 {[%clk 0:00:00]} 56. Ke3 {[%clk 0:00:00]}  f5 {[%clk 0:00:00]} 57. gxf5 {[%clk 0:00:00]}  Kxf5 {[%clk 0:00:00]} 58. Ke2 {[%clk 0:00:00]}  Ke5 {[%clk 0:00:00]} 59. Ke3 {[%clk 0:00:00]}  Kf5 {[%clk 0:00:00]} 60. Ke2 {[%clk 0:00:00]}  Kf4 {[%clk 0:00:00]} 61. Kf2 {[%clk 0:00:00]}  Ke5 {[%clk 0:00:00]} 62. Ke3 {[%clk 0:00:00]}  Kf5 {[%clk 0:00:00]} 1/2-1/2


[Site "https://www.chess.com"]

[Event "Titled Tuesday Blitz August 16 Early 2022"]
[White "Marin Ramirez, Gerardo"]
[Black "Derjabin, Ilja"]
[WhiteFideId "3901068"]
[BlackFideId "14104768"]
[WhiteElo "1920"]
[BlackElo "2341"]
[Result "1-0"]
[Round "02"]
[TimeControl "180+2"]
[Date "2022.08.18"]
[WhiteClock "0:00:00"]
[BlackClock "0:00:00"]

1. d4 {[%clk 0:00:00]}  Nf6 {[%clk 0:00:00]} 2. c4 {[%clk 0:00:00]}  c5 {[%clk 0:00:00]} 3. Nf3 {[%clk 0:00:00]}  cxd4 {[%clk 0:00:00]} 4. Nxd4 {[%clk 0:00:00]}  e5 {[%clk 0:00:00]} 5. Nf3 {[%clk 0:00:00]}  Nc6 {[%clk 0:00:00]} 6. e3 {[%clk 0:00:00]}  Bb4+ {[%clk 0:00:00]} 7. Bd2 {[%clk 0:00:00]}  Bxd2+ {[%clk 0:00:00]} 8. Qxd2 {[%clk 0:00:00]}  O-O {[%clk 0:00:00]} 9. Nc3 {[%clk 0:00:00]}  e4 {[%clk 0:00:00]} 10. Nd4 {[%clk 0:00:00]}  Re8 {[%clk 0:00:00]} 11. Ndb5 {[%clk 0:00:00]}  Ne5 {[%clk 0:00:00]} 12. Nd6 {[%clk 0:00:00]}  Re6 {[%clk 0:00:00]} 13. c5 {[%clk 0:00:00]}  b6 {[%clk 0:00:00]} 14. b4 {[%clk 0:00:00]}  bxc5 {[%clk 0:00:00]} 15. bxc5 {[%clk 0:00:00]}  Qc7 {[%clk 0:00:00]} 16. Rc1 {[%clk 0:00:00]}  Nd3+ {[%clk 0:00:00]} 17. Bxd3 {[%clk 0:00:00]}  exd3 {[%clk 0:00:00]} 18. Ncb5 {[%clk 0:00:00]}  Qc6 {[%clk 0:00:00]} 19. O-O {[%clk 0:00:00]}  Ba6 {[%clk 0:00:00]} 20. Nd4 {[%clk 0:00:00]}  Ne4 {[%clk 0:00:00]} 21. Qa5 {[%clk 0:00:00]}  d2 {[%clk 0:00:00]} 22. Nxc6 {[%clk 0:00:00]}  Bxf1 {[%clk 0:00:00]} 23. Rxf1 {[%clk 0:00:00]}  Nxd6 {[%clk 0:00:00]} 24. Qxd2 {[%clk 0:00:00]}  dxc6 {[%clk 0:00:00]} 25. cxd6 {[%clk 0:00:00]}  Rd8 {[%clk 0:00:00]} 26. d7 {[%clk 0:00:00]}  Re7 {[%clk 0:00:00]} 27. Rd1 {[%clk 0:00:00]}  g6 {[%clk 0:00:00]} 28. Qd6 {[%clk 0:00:00]} 1-0


[Site "https://www.chess.com"]

[Event "Titled Tuesday Blitz August 16 Early 2022"]
[White "Marra, Eduardo da Costa"]
[Black "Tarasova, Viktoriya"]
[WhiteFideId "2106990"]
[BlackFideId "4175840"]
[WhiteElo "2250"]
[BlackElo "2182"]
[Result "0-1"]
[Round "02"]
[TimeControl "180+2"]
[Date "2022.08.18"]
[WhiteClock "0:00:00"]
[BlackClock "0:00:00"]

1. e4 {[%clk 0:00:00]}  e5 {[%clk 0:00:00]} 2. Nf3 {[%clk 0:00:00]}  Nc6 {[%clk 0:00:00]} 3. Bc4 {[%clk 0:00:00]}  Bc5 {[%clk 0:00:00]} 4. d3 {[%clk 0:00:00]}  Nf6 {[%clk 0:00:00]} 5. Bg5 {[%clk 0:00:00]}  h6 {[%clk 0:00:00]} 6. Bh4 {[%clk 0:00:00]}  Be7 {[%clk 0:00:00]} 7. Nc3 {[%clk 0:00:00]}  d6 {[%clk 0:00:00]} 8. a4 {[%clk 0:00:00]}  O-O {[%clk 0:00:00]} 9. Bg3 {[%clk 0:00:00]}  Bg4 {[%clk 0:00:00]} 10. h3 {[%clk 0:00:00]}  Bh5 {[%clk 0:00:00]} 11. Bh2 {[%clk 0:00:00]}  Nd4 {[%clk 0:00:00]} 12. g4 {[%clk 0:00:00]}  Nxf3+ {[%clk 0:00:00]} 13. Qxf3 {[%clk 0:00:00]}  Bg6 {[%clk 0:00:00]} 14. h4 {[%clk 0:00:00]}  Nd7 {[%clk 0:00:00]} 15. Bg3 {[%clk 0:00:00]}  c6 {[%clk 0:00:00]} 16. g5 {[%clk 0:00:00]}  h5 {[%clk 0:00:00]} 17. Qe2 {[%clk 0:00:00]}  a6 {[%clk 0:00:00]} 18. a5 {[%clk 0:00:00]}  Nc5 {[%clk 0:00:00]} 19. f4 {[%clk 0:00:00]}  exf4 {[%clk 0:00:00]} 20. Bxf4 {[%clk 0:00:00]}  Ne6 {[%clk 0:00:00]} 21. Be3 {[%clk 0:00:00]}  Qd7 {[%clk 0:00:00]} 22. O-O-O {[%clk 0:00:00]}  Nc7 {[%clk 0:00:00]} 23. Bb3 {[%clk 0:00:00]}  d5 {[%clk 0:00:00]} 24. Bb6 {[%clk 0:00:00]}  d4 {[%clk 0:00:00]} 25. Na4 {[%clk 0:00:00]}  Ne6 {[%clk 0:00:00]} 26. Rhf1 {[%clk 0:00:00]}  Bd6 {[%clk 0:00:00]} 27. Kb1 {[%clk 0:00:00]}  c5 {[%clk 0:00:00]} 28. Qf3 {[%clk 0:00:00]}  Rac8 {[%clk 0:00:00]} 29. Qh3 {[%clk 0:00:00]}  Rfe8 {[%clk 0:00:00]} 30. Rf3 {[%clk 0:00:00]}  c4 {[%clk 0:00:00]} 31. dxc4 {[%clk 0:00:00]}  Bxe4 {[%clk 0:00:00]} 32. Rf2 {[%clk 0:00:00]}  Be5 {[%clk 0:00:00]} 33. Re2 {[%clk 0:00:00]}  Qc6 {[%clk 0:00:00]} 34. Rde1 {[%clk 0:00:00]}  Nf4 {[%clk 0:00:00]} 35. Qf1 {[%clk 0:00:00]}  Nxe2 {[%clk 0:00:00]} 36. Qxe2 {[%clk 0:00:00]}  Bg6 {[%clk 0:00:00]} 37. c5 {[%clk 0:00:00]}  Bg3 {[%clk 0:00:00]} 38. Bc4 {[%clk 0:00:00]}  Rxe2 {[%clk 0:00:00]} 39. Rxe2 {[%clk 0:00:00]}  Re8 {[%clk 0:00:00]} 40. Rd2 {[%clk 0:00:00]}  Qxa4 {[%clk 0:00:00]} 41. b3 {[%clk 0:00:00]}  Qc6 {[%clk 0:00:00]} 42. Kb2 {[%clk 0:00:00]}  Be5 {[%clk 0:00:00]} 43. Ka3 {[%clk 0:00:00]}  Qd7 {[%clk 0:00:00]} 44. c6 {[%clk 0:00:00]}  Qe7+ {[%clk 0:00:00]} 45. b4 {[%clk 0:00:00]}  bxc6 {[%clk 0:00:00]} 46. Bxa6 {[%clk 0:00:00]}  Rb8 {[%clk 0:00:00]} 47. Bc5 {[%clk 0:00:00]}  Qe6 {[%clk 0:00:00]} 48. Be2 {[%clk 0:00:00]}  Kh7 {[%clk 0:00:00]} 49. a6 {[%clk 0:00:00]}  Ra8 {[%clk 0:00:00]} 50. a7 {[%clk 0:00:00]}  Qd7 {[%clk 0:00:00]} 51. Kb3 {[%clk 0:00:00]}  Rxa7 {[%clk 0:00:00]} 52. Bxa7 {[%clk 0:00:00]}  Qxa7 {[%clk 0:00:00]} 53. Bc4 {[%clk 0:00:00]}  Qe7 {[%clk 0:00:00]} 54. Re2 {[%clk 0:00:00]}  Bf5 {[%clk 0:00:00]} 55. Re1 {[%clk 0:00:00]}  Qd6 {[%clk 0:00:00]} 56. Rf1 {[%clk 0:00:00]}  Be6 {[%clk 0:00:00]} 57. Re1 {[%clk 0:00:00]}  Bxc4+ {[%clk 0:00:00]} 58. Kxc4 {[%clk 0:00:00]}  Qd5+ {[%clk 0:00:00]} 59. Kd3 {[%clk 0:00:00]}  Bg3 {[%clk 0:00:00]} 60. Re4 {[%clk 0:00:00]}  Qf5 {[%clk 0:00:00]} 61. Kxd4 {[%clk 0:00:00]}  Bf2+ {[%clk 0:00:00]} 62. Kd3 {[%clk 0:00:00]}  Qf3+ {[%clk 0:00:00]} 0-1


[Site "https://www.chess.com"]

[Event "Titled Tuesday Blitz August 16 Early 2022"]
[White "McBryde, Lamel"]
[Black "Demidov, Mikhail"]
[WhiteFideId "2058596"]
[BlackFideId "4197143"]
[WhiteElo "2136"]
[BlackElo "2525"]
[Result "0-1"]
[Round "02"]
[TimeControl "180+2"]
[Date "2022.08.18"]
[WhiteClock "0:00:00"]
[BlackClock "0:00:00"]

1. Nf3 {[%clk 0:00:00]}  g6 {[%clk 0:00:00]} 2. e4 {[%clk 0:00:00]}  Bg7 {[%clk 0:00:00]} 3. Bd3 {[%clk 0:00:00]}  d6 {[%clk 0:00:00]} 4. O-O {[%clk 0:00:00]}  e6 {[%clk 0:00:00]} 5. Re1 {[%clk 0:00:00]}  Ne7 {[%clk 0:00:00]} 6. c3 {[%clk 0:00:00]}  h6 {[%clk 0:00:00]} 7. Bc2 {[%clk 0:00:00]}  b6 {[%clk 0:00:00]} 8. d4 {[%clk 0:00:00]}  Bb7 {[%clk 0:00:00]} 9. a4 {[%clk 0:00:00]}  a6 {[%clk 0:00:00]} 10. Na3 {[%clk 0:00:00]}  Nd7 {[%clk 0:00:00]} 11. Nc4 {[%clk 0:00:00]}  g5 {[%clk 0:00:00]} 12. Ne3 {[%clk 0:00:00]}  Ng6 {[%clk 0:00:00]} 13. b3 {[%clk 0:00:00]}  h5 {[%clk 0:00:00]} 14. e5 {[%clk 0:00:00]}  dxe5 {[%clk 0:00:00]} 15. Bxg6 {[%clk 0:00:00]}  fxg6 {[%clk 0:00:00]} 16. Qc2 {[%clk 0:00:00]}  Qf6 {[%clk 0:00:00]} 17. dxe5 {[%clk 0:00:00]}  Nxe5 {[%clk 0:00:00]} 18. Nxe5 {[%clk 0:00:00]}  Qxe5 {[%clk 0:00:00]} 19. Qxg6+ {[%clk 0:00:00]}  Kf8 {[%clk 0:00:00]} 20. Ba3+ {[%clk 0:00:00]}  Kg8 {[%clk 0:00:00]} 21. Be7 {[%clk 0:00:00]}  Rh6 {[%clk 0:00:00]} 22. Qxg5 {[%clk 0:00:00]}  Qxg5 {[%clk 0:00:00]} 23. Bxg5 {[%clk 0:00:00]}  Rg6 {[%clk 0:00:00]} 24. Bh4 {[%clk 0:00:00]}  Bxc3 {[%clk 0:00:00]} 25. Rac1 {[%clk 0:00:00]}  Bxe1 {[%clk 0:00:00]} 26. Rxe1 {[%clk 0:00:00]}  Rf8 {[%clk 0:00:00]} 27. Bg3 {[%clk 0:00:00]}  c5 {[%clk 0:00:00]} 28. Rd1 {[%clk 0:00:00]}  b5 {[%clk 0:00:00]} 29. Rd7 {[%clk 0:00:00]}  Ba8 {[%clk 0:00:00]} 30. axb5 {[%clk 0:00:00]}  axb5 {[%clk 0:00:00]} 31. Rc7 {[%clk 0:00:00]}  Rd8 {[%clk 0:00:00]} 32. Rxc5 {[%clk 0:00:00]}  b4 {[%clk 0:00:00]} 33. Rxh5 {[%clk 0:00:00]}  Rc8 {[%clk 0:00:00]} 34. h3 {[%clk 0:00:00]}  Rc3 {[%clk 0:00:00]} 35. Be5 {[%clk 0:00:00]}  Rc1+ {[%clk 0:00:00]} 0-1


[Site "https://www.chess.com"]

[Event "Titled Tuesday Blitz August 16 Early 2022"]
[White "Melaugh, Shane"]
[Black "Lauridsen, Jesper Morch"]
[WhiteFideId "2509580"]
[BlackFideId "1401890"]
[WhiteElo "1946"]
[BlackElo "2221"]
[Result "0-1"]
[Round "02"]
[TimeControl "180+2"]
[Date "2022.08.18"]
[WhiteClock "0:00:00"]
[BlackClock "0:00:00"]

1. e4 {[%clk 0:00:00]}  c5 {[%clk 0:00:00]} 2. Nf3 {[%clk 0:00:00]}  Nc6 {[%clk 0:00:00]} 3. c4 {[%clk 0:00:00]}  g6 {[%clk 0:00:00]} 4. d4 {[%clk 0:00:00]}  cxd4 {[%clk 0:00:00]} 5. Nxd4 {[%clk 0:00:00]}  Bg7 {[%clk 0:00:00]} 6. Be3 {[%clk 0:00:00]}  Nh6 {[%clk 0:00:00]} 7. Nc3 {[%clk 0:00:00]}  f5 {[%clk 0:00:00]} 8. exf5 {[%clk 0:00:00]}  O-O {[%clk 0:00:00]} 9. fxg6 {[%clk 0:00:00]}  Qa5 {[%clk 0:00:00]} 10. gxh7+ {[%clk 0:00:00]}  Kh8 {[%clk 0:00:00]} 11. Be2 {[%clk 0:00:00]}  Nxd4 {[%clk 0:00:00]} 12. Bxd4 {[%clk 0:00:00]}  e5 {[%clk 0:00:00]} 13. Be3 {[%clk 0:00:00]}  Nf5 {[%clk 0:00:00]} 14. Bd2 {[%clk 0:00:00]}  Qc5 {[%clk 0:00:00]} 15. O-O {[%clk 0:00:00]}  Nd4 {[%clk 0:00:00]} 16. Ne4 {[%clk 0:00:00]}  Qe7 {[%clk 0:00:00]} 17. Bg5 {[%clk 0:00:00]}  Qf7 {[%clk 0:00:00]} 18. Bg4 {[%clk 0:00:00]}  b6 {[%clk 0:00:00]} 19. h3 {[%clk 0:00:00]}  Qg6 {[%clk 0:00:00]} 20. f3 {[%clk 0:00:00]}  Bb7 {[%clk 0:00:00]} 21. Be3 {[%clk 0:00:00]}  Bxe4 {[%clk 0:00:00]} 22. fxe4 {[%clk 0:00:00]}  Qxe4 {[%clk 0:00:00]} 23. Bxd4 {[%clk 0:00:00]}  exd4 {[%clk 0:00:00]} 24. Bxd7 {[%clk 0:00:00]}  Qe3+ {[%clk 0:00:00]} 25. Kh1 {[%clk 0:00:00]}  Be5 {[%clk 0:00:00]} 26. Qg4 {[%clk 0:00:00]}  d3 {[%clk 0:00:00]} 27. Rfe1 {[%clk 0:00:00]}  Qf4 {[%clk 0:00:00]} 28. Qxf4 {[%clk 0:00:00]}  Bxf4 {[%clk 0:00:00]} 29. Bg4 {[%clk 0:00:00]}  Bg3 {[%clk 0:00:00]} 30. Red1 {[%clk 0:00:00]}  Rad8 {[%clk 0:00:00]} 31. Rac1 {[%clk 0:00:00]}  d2 {[%clk 0:00:00]} 32. Rc2 {[%clk 0:00:00]}  Rfe8 {[%clk 0:00:00]} 33. Rg1 {[%clk 0:00:00]}  Re1 {[%clk 0:00:00]} 34. Bd1 {[%clk 0:00:00]}  Rxg1+ {[%clk 0:00:00]} 35. Kxg1 {[%clk 0:00:00]}  Re8 {[%clk 0:00:00]} 36. Rxd2 {[%clk 0:00:00]}  Re1# {[%clk 0:00:00]} 0-1


[Site "https://www.chess.com"]